Cogmind - Beta 16.1 @@@ ROGUE MODE // 2026.04.18 @ 01:35:25 Player: thingimabob Result: Self-destructed Performance ------------- Evolutions (2) 1000 Regions Visited (3) 600 Robots Destroyed (54) 270 Value Destroyed (1635) 1635 Prototype IDs (2) 40 Alien Tech Used (0) 0 Bonus (0) 0 TOTAL SCORE: 3545 Bonus ------- None Cogmind --------- Core Integrity 150/550 Matter 232/300 Energy 100/100 System Corruption 0% Temperature Cool (0) Movement Treading (170) Location -8/Materials Parts ------- > --- POWER (1) -------- (None) > --- PROPULSION (2) --- Armored Treads Armored Treads > --- UTILITY (6) ------ Large Storage Unit Visual Processing Unit Signal Interpreter Improved Targeting Computer > --- WEAPON (2) ------- (None) > --- INVENTORY (15) --- Deuterium Engine Armored Treads Armored Treads Armored Treads Medium Treads Medium Treads Medium Treads Medium Treads Medium Storage Unit Hacking Suite Improved Datajack Peak State ------------ > --- POWER ------------ Light Nuclear Core > --- PROPULSION ------- Armored Treads Armored Treads > --- UTILITY ---------- Large Storage Unit Visual Processing Unit Signal Interpreter Improved Targeting Computer ECM Suite Hardened Light Armor Plating > --- WEAPON ----------- Light Assault Rifle Heavy Assault Rifle > --- INVENTORY -------- Light Treads Light Treads Light Treads Armored Treads Armored Treads Armored Treads Armored Treads Medium Storage Unit Hacking Suite Light Assault Rifle Rocket Launcher [Rating: 23] Favorites ----------- Power Ion Engine Engine Ion Engine Power Core Light Nuclear Core Propulsion Light Treads Treads Light Treads Utility Large Storage Unit Device Seismic Detector Storage Large Storage Unit Processor Signal Interpreter Protection Hardened Light Armor Plating Weapon Light Assault Rifle Ballistic Gun Light Assault Rifle Launcher Rocket Launcher Build | -11 -10 -9 -8 ------- Run | Yrd Mat Mat Mat Slots Evolved 4 | . . 2 2 Power . | . . . . Propulsion . | . . . . Utility 4 | . . 2 2 Weapon . | . . . . Parts Attached 32 | 7 3 5 17 Power 3 | 1 . . 2 Engine 1 | 1 . . . Core 2 | . . . 2 Reactor . | . . . . Propulsion 9 | 2 . 2 5 Treads 9 | 2 . 2 5 Leg . | . . . . Wheel . | . . . . Hover . | . . . . Flight . | . . . . Utility 12 | 3 1 2 6 Device 4 | 3 . . 1 Storage 1 | . 1 . . Processor 4 | . . 2 2 Hackware . | . . . . Protection 3 | . . . 3 Artifact . | . . . . Weapon 8 | 1 2 1 4 Energy Gun . | . . . . Energy Cannon . | . . . . Ballistic Gun 7 | 1 2 1 3 Ballistic Cannon . | . . . . Launcher 1 | . . . 1 Special Weapon . | . . . . Impact Weapon . | . . . . Slashing Weapon . | . . . . Piercing Weapon . | . . . . Special Melee Weapon . | . . . . Unidentified Prototypes . | . . . . Parts Lost 16 | . . 3 13 Power 3 | . . 1 2 Propulsion 2 | . . 1 1 Utility 5 | . . 1 4 Weapon 6 | . . . 6 Highest Loss Streak 3 | . . 1 3 To Critical Strikes . | . . . . Average Backups 10 | . 8 12 12 Power . | . . . . Propulsion 4 | . 2 3 6 Utility 3 | . 4 5 2 Weapon 2 | . 1 3 1 Tool/Special . | . . . . Unused Backups 16 | . . . 16 Power 1 | . . . 1 Propulsion 12 | . . . 12 Utility 2 | . . . 2 Weapon . | . . . . Tool/Special 1 | . . . 1 Average Slot Usage (%) 90 | . 95 89 87 Engine 5 | . 14 3 . Core 3 | . . . 7 Treads 22 | . 28 21 17 Device 12 | . 17 11 10 Storage 9 | . 10 11 9 Processor 13 | . . 19 22 Protection 2 | . . . 5 Ballistic Gun 19 | . 23 22 14 Peak Build Rating 23 | 8 8 10 23 Average Rating 12 | 3 7 9 18 On Entrance 6 | . 8 8 9 Avg Prop Armor Cover (%) . | . . . . Naked Turns . | . . . . Heaviest Build 38 | 9 29 29 38 Greatest Support 40 | 40 40 40 40 Greatest Overweight (x) 1 | . . 1 . Average Overweight (x) . | . . . . Largest Inventory Capacity 15 | 5 15 15 15 Average Capacity 13 | 5 12 15 15 Most Carried 15 | 4 14 14 15 Average Carried 10 | . 8 12 12 Final Capacity 15 | 5 15 15 15 Final Carried 14 | 1 14 14 11 Class Distribution -------------------- 100% | Mutant Dominant Class ---------------- Mutant | -10/Materials Mutant | -9/Materials Mutant | -8/Materials Resources | -11 -10 -9 -8 ----------- Run | Yrd Mat Mat Mat Matter Collected 1230 | 295 224 173 538 Remotely 43 | 23 . . 20 Salvage Created 2192 | 74 449 257 1412 Parts 117 | 4 27 21 65 Haulers Intercepted 4 | . 1 . 3 Recyclers Shooed 1 | . 1 . . Parts Field Recycled . | . . . . Retrieved Matter . | . . . . Parts Self-Destructed . | . . . . Prevented . | . . . . Parts Restored . | . . . . Kills | -11 -10 -9 -8 ------- Run | Yrd Mat Mat Mat Combat Hostiles Destroyed 40 | . 13 5 22 Guns 39 | . 13 5 21 AOE 1 | . . . 1 Classes Destroyed 12 | 2 4 2 4 Worker 3 | . . . 3 Builder 2 | . . . 2 Tunneler 1 | 1 . . . Hauler 4 | . 1 . 3 Recycler 1 | 1 . . . Operator 1 | . 1 . . Watcher 2 | . . 1 1 Swarmer 6 | . 6 . . Grunt 28 | . 7 3 18 Brawler 1 | . . . 1 Duelist 1 | . . . 1 Sentry 4 | . . 2 2 Best Kill Streak 4 | 1 4 2 4 Combat Bots Only 4 | . 4 2 3 Max Kills in Single Turn 2 | 1 1 1 2 Gunslinging . | . . . . Exploded 1 | . . . 1 Melee . | . . . . Uniques/NPCs Destroyed . | . . . . Combat | -11 -10 -9 -8 -------- Run | Yrd Mat Mat Mat Hostile Shots Fired 268 | . 50 42 176 Missed 78 | . 19 11 48 Hits 190 | . 31 31 128 Melee 7 | . . . 7 Projectile 183 | . 31 31 121 Critical Strikes 12 | . 1 1 10 Damage Taken 3131 | . 368 416 2347 Core 593 | . 80 113 400 Absorbed by Shields . | . . . . Core Remaining (%) 79 | 100 68 71 . Volleys Fired 212 | 15 45 22 130 Largest 2 | 1 2 2 2 Hottest 46 | 20 40 43 46 Shots Fired 342 | 15 84 44 199 Gun 337 | 15 84 44 194 Cannon . | . . . . Launcher 5 | . . . 5 Special . | . . . . Kinetic 337 | 15 84 44 194 Thermal . | . . . . Explosive 5 | . . . 5 Electromagnetic . | . . . . Robot Hit Streak 26 | 6 17 9 26 Robot Miss Streak 3 | 1 3 1 3 Penetration Max . | . . . . Secondary Targets 3 | . . . 3 Max Gunslinging Chain 1 | . . . 1 Shots Hit Robots 254 | 11 56 33 154 Core Hits 125 | 3 29 10 83 Critical Kills . | . . . . Critical Parts Destroyed . | . . . . Critical Strikes . | . . . . Melee Attacks . | . . . . Impact . | . . . . Slashing . | . . . . Piercing . | . . . . Sneak Attacks . | . . . . Combat Hostiles . | . . . . Follow-up Attacks . | . . . . Damage Inflicted 3187 | 137 592 411 2047 Guns 2892 | 137 592 411 1752 Cannons . | . . . . Explosions 295 | . . . 295 Melee . | . . . . Ramming . | . . . . Kinetic 2892 | 137 592 411 1752 Thermal . | . . . . Explosive 295 | . . . 295 Electromagnetic . | . . . . Impact . | . . . . Slashing . | . . . . Piercing . | . . . . Highest Corruption . | . . . . Average Corruption . | . . . . Corruption Purged . | . . . . Corruption Blocked . | . . . . Overload Shots . | . . . . Overflow Damage 32 | . . . 32 Projectiles . | . . . . Explosions 32 | . . . 32 Melee . | . . . . Knockbacks . | . . . . Impact . | . . . . Kinetic . | . . . . Secondary . | . . . . Self-Inflicted Damage 145 | . . . 145 Shots 3 | . . . 3 Rammed . | . . . . Targets Rammed . | . . . . Kicked . | . . . . Crushed . | . . . . Highest Temperature 75 | . 34 19 75 Average Temperature 13 | . 10 4 14 Received Heat Transfer 1620 | . 177 183 1260 Siege Activations . | . . . . Martial Activations . | . . . . Shielding Activations . | . . . . Robots Disrupted . | . . . . Combat Hostiles . | . . . . Robots Corrupted . | . . . . Combat Hostiles . | . . . . Parts Fried . | . . . . Impact Corruptions . | . . . . Robots Melted . | . . . . Combat Hostiles . | . . . . Parts Melted . | . . . . Heat Transferred . | . . . . Parts Sabotaged . | . . . . Parts Stolen . | . . . . Parts Stripped . | . . . . Power Chain Reactions . | . . . . Alert | -11 -10 -9 -8 ------- Run | Yrd Mat Mat Mat Maximum Alert Level 1 | . 1 . . Low Security (%) 99 | 100 97 100 100 Level 1 . | . 2 . . Level 2 . | . . . . Level 3 . | . . . . Level 4 . | . . . . Level 5 . | . . . . High Security . | . . . . Max Security . | . . . . Peak Influence 202 | 5 202 61 180 Initial 61 | . . 61 12 Average 71 | . 89 24 78 Influence Increases 1237 | 10 407 147 673 Destroy 0b10 Robot/C 800 | . 260 100 440 Destroy 0b10 Robot/NC 70 | 10 10 5 45 Destroy Leader 192 | . 62 42 88 Successful Hack 34 | . 30 . 4 Destroy Structure 36 | . . . 36 Lose Combat Pursuer 105 | . 45 . 60 Influence Decreases 1128 | 10 262 262 594 Entered New Map 102 | . . 84 18 Time Decay 876 | 10 262 158 446 Lost Part 150 | . . 20 130 Squads Dispatched 7 | . 2 2 3 Investigation 2 | . 1 . 1 Extermination . | . . . . Reinforcement 5 | . 1 2 2 Assault . | . . . . Garrison . | . . . . Intercept . | . . . . Searches Triggered . | . . . . Construction Impeded 1 | . . . 1 Haulers Reinforced . | . . . . Active Scanning Responses . | . . . . Cargo Convoy Interrupts . | . . . . Stealth | -11 -10 -9 -8 --------- Run | Yrd Mat Mat Mat Distress Signals 3 | . 1 . 2 Communications Jammed . | . . . . Distress Signals . | . . . . Times Spotted 71 | . 24 11 36 Peak Tracking Total 6 | . 6 2 4 Tactical Retreats 3 | . 1 . 2 Traps | -11 -10 -9 -8 ------- Run | Yrd Mat Mat Mat Traps Triggered 1 | . . . 1 Indirectly . | . . . . Trap Hack Attempts . | . . . . Triggered . | . . . . Disarmed . | . . . . Reprogrammed . | . . . . Reused . | . . . . Traps Extracted . | . . . . Installed . | . . . . Triggered . | . . . . Machines | -11 -10 -9 -8 ---------- Run | Yrd Mat Mat Mat Machines Disabled . | . . . . Max in Single Turn . | . . . . Machines Repaired . | . . . . Machines Dismantled . | . . . . Machines Sabotaged . | . . . . Overloaded Fab Kills . | . . . . Hacking | -11 -10 -9 -8 --------- Run | Yrd Mat Mat Mat Machines Accessed 7 | . 5 . 2 Terminals 7 | . 5 . 2 Fabricators . | . . . . Repair Stations . | . . . . Recycling Units . | . . . . Scanalyzers . | . . . . Garrison Access . | . . . . Total Hacks 23 | . 17 . 6 Successful 12 | . 9 . 3 Failed 11 | . 8 . 3 Catastrophic 3 | . 2 . 1 Database Lockouts . | . . . . Manual 21 | . 15 . 6 Terminals 23 | . 17 . 6 Fabricators . | . . . . Repair Stations . | . . . . Recycling Units . | . . . . Scanalyzers . | . . . . Garrison Access . | . . . . Terminal Hacks 2 | . 2 . . Prototype ID Bank 1 | . 1 . . Terminal Index 1 | . 1 . . Fabricator Hacks . | . . . . Repair Station Hacks . | . . . . Recycling Unit Hacks . | . . . . Scanalyzer . | . . . . Garrison Access Hacks . | . . . . Unauthorized Hacks 10 | . 7 . 3 Terminals 10 | . 7 . 3 Botnet 3 | . 2 . 1 Skim 7 | . 5 . 2 Fabricators . | . . . . Repair Stations . | . . . . Recycling Units . | . . . . Scanalyzers . | . . . . Garrison Access . | . . . . Data Cores Recovered . | . . . . Used . | . . . . Hacking Detections 7 | . 5 . 2 Full Trace Events 2 | . 1 . 1 Feedback Events . | . . . . Feedback Blocked . | . . . . Robot Schematics Acquired . | . . . . Robots Built . | . . . . Authchips . | . . . . Time . | . . . . Total Robot Build Rating . | . . . . Part Schematics Acquired . | . . . . Parts Built . | . . . . Authchips . | . . . . Time . | . . . . Total Part Build Rating . | . . . . Part Studies Acquired . | . . . . Parts Repaired . | . . . . Time . | . . . . Parts Recycled . | . . . . Recycled Matter . | . . . . Retrieved Matter . | . . . . Retrieved Components . | . . . . Parts Scanalyzed . | . . . . Part Schematics Acquired . | . . . . Parts Damaged . | . . . . Bothacking | -11 -10 -9 -8 ------------ Run | Yrd Mat Mat Mat Used RIF Installer . | . . . . Robots Hacked . | . . . . Non-combat . | . . . . Combat . | . . . . Robot Hacks Applied . | . . . . Relay Couplers Released . | . . . . Fabnet Peak Effective % . | . . . . Robots Rewired . | . . . . Allies Hacked . | . . . . Hacks Repelled . | . . . . Allies | -11 -10 -9 -8 -------- Run | Yrd Mat Mat Mat Total Allies . | . . . . Largest Group . | . . . . Highest-Rated Group . | . . . . Highest-Rated Ally . | . . . . Total Orders . | . . . . Ally Attacks . | . . . . Total Damage . | . . . . Kills . | . . . . Allies Corrupted . | . . . . Allies Melted . | . . . . Intel | -11 -10 -9 -8 ------- Run | Yrd Mat Mat Mat Active Infowar (turns) 2399 | 16 945 345 1093 Optics 917 | . . . 917 Terrain 224 | 12 212 . . Seismic 1482 | 16 945 345 176 ECM 1 | . . . 1 Robot Analysis Total . | . . . . Derelict Logs Recovered . | . . . . Drone Launches . | . . . . Drone Recoveries . | . . . . Exploration | -11 -10 -9 -8 ------------- Run | Yrd Mat Mat Mat Turns Passed 2615 | 131 945 345 1194 Spaces Moved 1156 | 74 466 156 460 Core 28 | 28 . . . Treads 1128 | 46 466 156 460 Legs . | . . . . Wheels . | . . . . Hover . | . . . . Flight . | . . . . Fastest Speed 50 | 50 160 160 160 Average Speed 160 | 118 160 160 166 Slowest Speed 240 | 160 160 240 170 Overloaded Moves . | . . . . Propulsion Burnouts . | . . . . Robots Hopped . | . . . . Potential Cave-ins . | . . . . Cave-ins Triggered . | . . . . Exploration Rate (%) 33 | 4 71 21 36 Regions Visited 3 Branch Regions . Pre-discovered Areas . | . . . . Known Exits Taken 1 | . . 1 . Unknown Exits Taken 2 | 1 1 . . Scrap Searched . | . . . . Spaces Dug . | . . . . Terrain Destroyed 40 | . . . 40 Melee . | . . . . Projectile . | . . . . AOE 40 | . . . 40 Terrain Rammed . | . . . . Walls Destroyed . | . . . . Machines Disabled . | . . . . Actions | -11 -10 -9 -8 --------- Run | Yrd Mat Mat Mat Total 1623 | 102 588 212 721 Wait 158 | . 61 21 76 Move 1153 | 73 465 155 460 Hop . | . . . . Pick Up 49 | 7 14 6 22 Fast Attach . | . . . . Attach 25 | 6 1 3 15 Detach 1 | . . . 1 Swap 10 | 1 2 2 5 Drop 15 | . . 3 12 Fire 212 | 15 45 22 130 Melee . | . . . . Ram . | . . . . Kick . | . . . . Crush . | . . . . Escape Stasis . | . . . . Rewire . | . . . . Trap . | . . . . Miscellaneous . | . . . . Route ------- -11/Scrapyard -10/Materials (discovered 2 exits: [*Mat] / [*Min]) -9/Materials -8/Materials History --------- Turn | Location | Event 5 | -11/Scrapyard | Discovered new exit (range 14) 132 | -11/Scrapyard | Entered Materials 312 | -10/Materials | Build established: Mutant 325 | -10/Materials | Discovered new exit (range 16) 817 | -10/Materials | Discovered new exit (range 5) 1077 | -10/Materials | Entered another Materials area 1077 | -9/Materials | Evolved 2 slots: Utility x2 1371 | -9/Materials | Discovered new exit (range 12) 1421 | -9/Materials | Identified exit to Materials 1422 | -9/Materials | Entered another Materials area 1422 | -8/Materials | Evolved 2 slots: Utility x2 2586 | -8/Materials | Core integrity fell below 50% 2616 | -8/Materials | Self-destructed Last Messages --------------- K-01 Serf collects debris. G-47 Trooper destroyed. K-01 Serf collects debris. Acquired 8 matter. K-01 Serf collects debris. W-25 Informer sends out distress signal. Critical hit (Burn: +37). Lgt. Assault Rifle destroyed. Critical hit (Burn: +37). Destroyed Imp. Ion Engine. K-01 Serf destroyed. ECM Suite destroyed. U-05 Engineer lays Concrete. L-31 Rogue destroyed. U-05 Engineer lays Concrete. Destroyed Welding Torch. ALERT: Construction progress impeded, dispatching reinforcements to local area. U-05 Engineer destroyed. Rocket Launcher destroyed. Map ----- +----------------------------------------------------+ | ?????######## ######## #########/##??????????? | | ????????????# #??????# ## #??????????? | | ????????????# ==#?????## ## """ """ ############ | | ????????????#^% ####### # """ """ + | | ????????????# # """ """ #??#### | | ????????????# % T + *%[#?????# | | ????????????# % # != #?????# | | ????????????########### # [ #?????# # | | ??????????????????????##### # ! #?????# ? | | ??????????????????????????# #### T"#+##?????# ? | | ??????????????????????????# #??#"""#%#??????# ? | | ??????????????????????????# #??##### #??????# ?? | | ??????????????????????????# #??????# #??????# ?? | | ??????????????????????????# #??????# #?????##+##+# | | ??????????????????????????# #??????# #?????# | | ??????????????????????##### #??????# #?????# """ | | ??????????????????????# !# #??????#%#?????# "T" | | ??????????????????????# # #??????#=#?????# | | ??????????????????????# # #??????#%#?????#= | | ??????????????????????# # #??????#=#?????# | | ??????????????????????# # #??????#%##########+## | | ????????###????######## #w#??????#!=* =% | | ????????# ??# # # #??????#/= ! [% / | | ????????#] # # ##?????# [*%= **! | | ????????# """ + #?????####%=* *![ | | ????????#! """ # @ #????######=! *![ | | ????????# ""??# % #???#!! ## ## | | ????????#! ????### ### #???#!! ## # | | ????????#????????# # ##???#== ## # | | ?????????????????# ## ????#== = ! + | | ?????????????????# ### #???# ==########## | | ?????????????????# #?# #???# = #????????# | | ?????????????????#+#?# ##???##### #??######## | | ????????????????? ? %g ????????# #?? #?? | | ????????????????? ? ! ???????## ##| #?? | | ???????????????? ??????# # #?? | | ????????????????" """ # ??????# + """ #?? | | ???????????????"" """ # ? ??????# [ # """ #?? | | ???????????????"" """ ## ? ?????##%## """ #?? | | ?????????????? ## ? ??????#=#??######?? | | ?????????????? #? ? ??????# #?????????? | | ???????????????###+####? ? ???????# #?????????? | | ???????????????????????? ? ?????????# #?????????? | | ?????????????????????????????????????# #?????????? | | ?????????????????????????????????????# #?????????? | | ?????????????????????????????????????# #?????????? | | ?????????????????????????????????????# #?????????? | | ?????????????????????????????????????+ ?????????? | | ?????????????????????????????????????# ?????????? | | ?????????????????????????????????????# ?????????? | +----------------------------------------------------+ Best States ------------- Heat Dissipation 31 Energy Generation 14 Energy Capacity 250 Matter Stores 300 Matter Capacity 300 Sight Range 18 Terrain Scan Range 16 Terrain Scan Density 10 Armor Coverage 150 Evasion (%) 50 Targeting Accuracy 6 Recoil Reduction 2 Item Schematics ----------------- None Robot Schematics ------------------ None Fabricated ------------ Nothing Repaired ---------- Nothing Studied --------- None Alien Tech Used ----------------- None Achievements -------------- None Challenges ------------ None Game ------ Seed StorageBlastRedirector Manual? 0 Play Time 00:19:09 Cumulative 47.8 hours Start 2026.04.18 @ 00:52:21 End 2026.04.18 @ 01:35:25 Sessions 1 Manual Loads 0 Difficulty Rogue Special Mode None Game No. 60 Rogue 60 Adventurer 0 Explorer 0 Win Type - Total 1 Types 1/0/0/0/0/0/0/0/0/0 Lore% 34 Gallery% 31 Achievement% 28 Wizard Run 0 Options --------- Layout 1 ASCII 0 Keyboard 0 Movement Mouse Keybinds 0 Fullscreen 2 Font 24/Smallcaps Map View 50x35 Zoom Use 0% Tactical HUD 0 Map Filters NONE Filters NONE Steam 1 RUN: ecae94f9-8f76-45cc-8168-e5de17b129f2